[Event "Titled Tuesday Blitz August 1 Early 2023"]
[White "Ventura Bolet, Maxim"]
[Black "Guerra Tulcan, Lenin"]
[WhiteFideId "22238824"]
[BlackFideId "3601382"]
[WhiteElo "2448"]
[BlackElo "2616"]
[Result "0-1"]
[Round "4"]
[TimeControl "180+1"]
[Date "2023.08.01"]
[WhiteClock "0:00:07"]
[BlackClock "0:00:17"]
[Board "125"]

1. a3 {[%clk 0:03:00]}  e5 {[%clk 0:02:59]} 2. e4 {[%clk 0:02:59]}  b6 {[%clk 0:02:58]} 3. Nc3 {[%clk 0:02:56]}  Bb7 {[%clk 0:02:58]} 4. Nf3 {[%clk 0:02:56]}  d6 {[%clk 0:02:57]} 5. Bc4 {[%clk 0:02:56]}  Nf6 {[%clk 0:02:57]} 6. d3 {[%clk 0:02:53]}  Be7 {[%clk 0:02:57]} 7. O-O {[%clk 0:02:51]}  O-O {[%clk 0:02:57]} 8. h3 {[%clk 0:02:50]}  Nbd7 {[%clk 0:02:55]} 9. Re1 {[%clk 0:02:48]}  c6 {[%clk 0:02:55]} 10. Ba2 {[%clk 0:02:46]}  Re8 {[%clk 0:02:55]} 11. Bg5 {[%clk 0:02:40]}  h6 {[%clk 0:02:55]} 12. Bh4 {[%clk 0:02:40]}  Bf8 {[%clk 0:02:55]} 13. Qd2 {[%clk 0:02:37]}  Qc7 {[%clk 0:02:54]} 14. Rad1 {[%clk 0:02:37]}  d5 {[%clk 0:02:46]} 15. exd5 {[%clk 0:02:25]}  cxd5 {[%clk 0:02:44]} 16. Bg3 {[%clk 0:02:13]}  a6 {[%clk 0:02:15]} 17. d4 {[%clk 0:02:13]}  Ne4 {[%clk 0:02:08]} 18. Nxe4 {[%clk 0:02:09]}  dxe4 {[%clk 0:02:09]} 19. Nxe5 {[%clk 0:02:09]}  Nxe5 {[%clk 0:02:07]} 20. Bxe5 {[%clk 0:02:08]}  Qd7 {[%clk 0:02:07]} 21. c3 {[%clk 0:02:05]}  Rad8 {[%clk 0:02:06]} 22. Qe3 {[%clk 0:01:59]}  Kh7 {[%clk 0:02:05]} 23. Bb1 {[%clk 0:01:53]}  f6 {[%clk 0:02:05]} 24. Bg3 {[%clk 0:01:45]}  f5 {[%clk 0:01:52]} 25. h4 {[%clk 0:01:45]}  Kh8 {[%clk 0:01:47]} 26. Qf4 {[%clk 0:01:42]}  Qf7 {[%clk 0:01:32]} 27. Qe3 {[%clk 0:01:34]}  Be7 {[%clk 0:01:27]} 28. Be5 {[%clk 0:01:31]}  Bf6 {[%clk 0:01:21]} 29. Bxf6 {[%clk 0:01:29]}  Qxf6 {[%clk 0:01:22]} 30. Qf4 {[%clk 0:01:27]}  Bd5 {[%clk 0:01:15]} 31. Bc2 {[%clk 0:01:24]}  g5 {[%clk 0:01:15]} 32. hxg5 {[%clk 0:01:22]}  hxg5 {[%clk 0:01:16]} 33. Qc7 {[%clk 0:01:19]}  Rc8 {[%clk 0:01:13]} 34. Qd7 {[%clk 0:01:15]}  Rcd8 {[%clk 0:01:08]} 35. Qa7 {[%clk 0:01:13]}  Re7 {[%clk 0:01:03]} 36. Qxa6 {[%clk 0:01:11]}  Kg7 {[%clk 0:01:03]} 37. c4 {[%clk 0:00:52]}  Bf7 {[%clk 0:01:03]} 38. c5 {[%clk 0:00:48]}  Rxd4 {[%clk 0:00:39]} 39. Qxb6 {[%clk 0:00:39]}  Re6 {[%clk 0:00:39]} 40. Qb7 {[%clk 0:00:32]}  Rxd1 {[%clk 0:00:35]} 41. Rxd1 {[%clk 0:00:32]}  e3 {[%clk 0:00:33]} 42. fxe3 {[%clk 0:00:24]}  Qe5 {[%clk 0:00:33]} 43. Re1 {[%clk 0:00:18]}  Qxc5 {[%clk 0:00:33]} 44. Bb3 {[%clk 0:00:17]}  Re7 {[%clk 0:00:33]} 45. Qb8 {[%clk 0:00:15]}  Rxe3 {[%clk 0:00:30]} 46. Rxe3 {[%clk 0:00:09]}  Qxe3+ {[%clk 0:00:31]} 47. Kh1 {[%clk 0:00:09]}  Bxb3 {[%clk 0:00:26]} 48. Qc7+ {[%clk 0:00:09]}  Bf7 {[%clk 0:00:26]} 49. a4 {[%clk 0:00:05]}  g4 {[%clk 0:00:20]} 50. a5 {[%clk 0:00:05]}  g3 {[%clk 0:00:18]} 51. Qc3+ {[%clk 0:00:02]}  Qxc3 {[%clk 0:00:18]} 52. bxc3 {[%clk 0:00:03]}  Bc4 {[%clk 0:00:18]} 53. Kg1 {[%clk 0:00:01]}  Kf6 {[%clk 0:00:18]} 54. Kh1 {[%clk 0:00:02]}  Ke5 {[%clk 0:00:18]} 55. Kg1 {[%clk 0:00:02]}  Kd5 {[%clk 0:00:18]} 56. Kh1 {[%clk 0:00:03]}  Kc6 {[%clk 0:00:18]} 57. Kg1 {[%clk 0:00:03]}  Kb5 {[%clk 0:00:19]} 58. Kh1 {[%clk 0:00:04]}  Kxa5 {[%clk 0:00:20]} 59. Kg1 {[%clk 0:00:05]}  Ka4 {[%clk 0:00:20]} 60. Kh1 {[%clk 0:00:06]}  Kb3 {[%clk 0:00:21]} 61. Kg1 {[%clk 0:00:07]}  Kc2 {[%clk 0:00:21]} 62. Kh1 {[%clk 0:00:08]}  Kd2 {[%clk 0:00:22]} 63. Kg1 {[%clk 0:00:08]}  Ke2 {[%clk 0:00:22]} 64. Kh1 {[%clk 0:00:09]}  Bd5 {[%clk 0:00:22]} 65. c4 {[%clk 0:00:09]}  Bc6 {[%clk 0:00:22]} 66. c5 {[%clk 0:00:10]}  f4 {[%clk 0:00:19]} 67. Kg1 {[%clk 0:00:10]}  f3 {[%clk 0:00:19]} 68. Kh1 {[%clk 0:00:08]}  Bd7 {[%clk 0:00:17]} 69. c6 {[%clk 0:00:08]}  f2 {[%clk 0:00:17]} 70. cxd7 {[%clk 0:00:07]}  f1=Q# {[%clk 0:00:17]} 0-1


[Site "https://www.chess.com"]

[Event "Titled Tuesday Blitz August 1 Early 2023"]
[White "Swicarz, Maciej"]
[Black "Mendez Fortes, Eduardo Jesus"]
[WhiteFideId "1113585"]
[BlackFideId "3502376"]
[WhiteElo "2428"]
[BlackElo "2558"]
[Result "0-1"]
[Round "4"]
[TimeControl "180+1"]
[Date "2023.08.01"]
[WhiteClock "0:00:05"]
[BlackClock "0:01:18"]
[Board "128"]

1. c4 {[%clk 0:03:00]}  e6 {[%clk 0:02:59]} 2. Nc3 {[%clk 0:03:00]}  d5 {[%clk 0:02:59]} 3. d4 {[%clk 0:02:59]}  Nf6 {[%clk 0:02:58]} 4. Bg5 {[%clk 0:02:57]}  Bb4 {[%clk 0:02:57]} 5. cxd5 {[%clk 0:02:53]}  exd5 {[%clk 0:02:57]} 6. e3 {[%clk 0:02:52]}  h6 {[%clk 0:02:56]} 7. Bxf6 {[%clk 0:02:52]}  Qxf6 {[%clk 0:02:57]} 8. Bd3 {[%clk 0:02:51]}  O-O {[%clk 0:02:57]} 9. Ne2 {[%clk 0:02:51]}  c6 {[%clk 0:02:57]} 10. O-O {[%clk 0:02:48]}  Nd7 {[%clk 0:02:57]} 11. a3 {[%clk 0:02:46]}  Ba5 {[%clk 0:02:55]} 12. b4 {[%clk 0:02:45]}  Bc7 {[%clk 0:02:55]} 13. b5 {[%clk 0:02:44]}  Nb6 {[%clk 0:02:49]} 14. bxc6 {[%clk 0:02:43]}  bxc6 {[%clk 0:02:50]} 15. Na4 {[%clk 0:02:30]}  Qh4 {[%clk 0:02:48]} 16. g3 {[%clk 0:02:29]}  Qh5 {[%clk 0:02:40]} 17. Nec3 {[%clk 0:02:16]}  Qh3 {[%clk 0:02:33]} 18. Qf3 {[%clk 0:02:11]}  Bg4 {[%clk 0:02:30]} 19. Qg2 {[%clk 0:02:11]}  Qh5 {[%clk 0:02:29]} 20. Rfe1 {[%clk 0:01:56]}  Bf3 {[%clk 0:02:19]} 21. Qf1 {[%clk 0:01:55]}  Nc4 {[%clk 0:02:19]} 22. Ra2 {[%clk 0:01:46]}  f5 {[%clk 0:02:13]} 23. Be2 {[%clk 0:01:41]}  f4 {[%clk 0:02:09]} 24. Bxf3 {[%clk 0:01:38]}  Qxf3 {[%clk 0:02:08]} 25. exf4 {[%clk 0:01:36]}  Bxf4 {[%clk 0:02:03]} 26. Qg2 {[%clk 0:01:35]}  Qxg2+ {[%clk 0:02:02]} 27. Kxg2 {[%clk 0:01:36]}  Bd6 {[%clk 0:02:02]} 28. Re6 {[%clk 0:01:30]}  Rae8 {[%clk 0:02:01]} 29. Rxe8 {[%clk 0:01:17]}  Rxe8 {[%clk 0:02:01]} 30. Nb2 {[%clk 0:01:17]}  Nxa3 {[%clk 0:01:57]} 31. Nd3 {[%clk 0:01:16]}  Rb8 {[%clk 0:01:56]} 32. Nc1 {[%clk 0:01:12]}  a5 {[%clk 0:01:53]} 33. Kf3 {[%clk 0:01:01]}  Nc4 {[%clk 0:01:51]} 34. Ke2 {[%clk 0:00:57]}  Re8+ {[%clk 0:01:48]} 35. Kd1 {[%clk 0:00:54]}  Bb4 {[%clk 0:01:48]} 36. N3e2 {[%clk 0:00:48]}  a4 {[%clk 0:01:47]} 37. Nd3 {[%clk 0:00:39]}  Bd6 {[%clk 0:01:45]} 38. Rxa4 {[%clk 0:00:38]}  Rf8 {[%clk 0:01:45]} 39. Ra6 {[%clk 0:00:36]}  Rc8 {[%clk 0:01:44]} 40. Nef4 {[%clk 0:00:30]}  g5 {[%clk 0:01:41]} 41. Ne6 {[%clk 0:00:27]}  Kf7 {[%clk 0:01:39]} 42. Nec5 {[%clk 0:00:27]}  Kf6 {[%clk 0:01:39]} 43. Ra7 {[%clk 0:00:25]}  Bxc5 {[%clk 0:01:34]} 44. Nxc5 {[%clk 0:00:25]}  Kf5 {[%clk 0:01:29]} 45. f3 {[%clk 0:00:22]}  g4 {[%clk 0:01:28]} 46. f4 {[%clk 0:00:18]}  Nd6 {[%clk 0:01:25]} 47. Rd7 {[%clk 0:00:16]}  Ne4 {[%clk 0:01:24]} 48. Rf7+ {[%clk 0:00:12]}  Kg6 {[%clk 0:01:23]} 49. Rb7 {[%clk 0:00:11]}  Nxc5 {[%clk 0:01:21]} 50. dxc5 {[%clk 0:00:12]}  Kf5 {[%clk 0:01:22]} 51. Re7 {[%clk 0:00:12]}  Rb8 {[%clk 0:01:20]} 52. Rc7 {[%clk 0:00:11]}  Ke4 {[%clk 0:01:19]} 53. Rxc6 {[%clk 0:00:11]}  d4 {[%clk 0:01:20]} 54. Rxh6 {[%clk 0:00:10]}  Kd3 {[%clk 0:01:20]} 55. Kc1 {[%clk 0:00:11]}  Kc3 {[%clk 0:01:17]} 56. c6 {[%clk 0:00:10]}  d3 {[%clk 0:01:16]} 57. c7 {[%clk 0:00:07]}  d2+ {[%clk 0:01:17]} 58. Kd1 {[%clk 0:00:07]}  Rb1+ {[%clk 0:01:17]} 59. Ke2 {[%clk 0:00:05]}  d1=Q+ {[%clk 0:01:18]} 0-1


[Site "https://www.chess.com"]

[Event "Titled Tuesday Blitz August 1 Early 2023"]
[White "Thecourseoisildur"]
[Black "kripri"]
[WhiteElo "2534"]
[BlackElo "2379"]
[Result "1-0"]
[Round "4"]
[TimeControl "180+1"]
[Date "2023.08.01"]
[WhiteClock "0:01:38"]
[BlackClock "0:00:05"]
[Board "132"]

1. d4 {[%clk 0:03:00]}  d5 {[%clk 0:02:59]} 2. c4 {[%clk 0:03:01]}  e6 {[%clk 0:02:59]} 3. Nf3 {[%clk 0:03:01]}  Nf6 {[%clk 0:02:59]} 4. g3 {[%clk 0:03:02]}  Be7 {[%clk 0:02:57]} 5. Bg2 {[%clk 0:03:02]}  O-O {[%clk 0:02:57]} 6. O-O {[%clk 0:03:02]}  dxc4 {[%clk 0:02:58]} 7. Qc2 {[%clk 0:03:02]}  a6 {[%clk 0:02:57]} 8. a4 {[%clk 0:03:03]}  Bd7 {[%clk 0:02:56]} 9. Qxc4 {[%clk 0:03:03]}  Bc6 {[%clk 0:02:56]} 10. Bg5 {[%clk 0:03:02]}  Nbd7 {[%clk 0:02:48]} 11. Rd1 {[%clk 0:02:53]}  Bd5 {[%clk 0:02:41]} 12. Qc2 {[%clk 0:02:50]}  Be4 {[%clk 0:02:40]} 13. Qc1 {[%clk 0:02:50]}  h6 {[%clk 0:02:36]} 14. Bxf6 {[%clk 0:02:50]}  Nxf6 {[%clk 0:02:35]} 15. Nc3 {[%clk 0:02:50]}  Bg6 {[%clk 0:02:24]} 16. Ne5 {[%clk 0:02:49]}  c6 {[%clk 0:02:12]} 17. Nxg6 {[%clk 0:02:48]}  fxg6 {[%clk 0:02:12]} 18. Qe3 {[%clk 0:02:46]}  Qd6 {[%clk 0:02:02]} 19. Bh3 {[%clk 0:02:46]}  Kf7 {[%clk 0:02:01]} 20. Ne4 {[%clk 0:02:41]}  Nxe4 {[%clk 0:01:41]} 21. Qxe4 {[%clk 0:02:41]}  Bf6 {[%clk 0:01:36]} 22. Ra3 {[%clk 0:02:40]}  Qd5 {[%clk 0:01:27]} 23. Qc2 {[%clk 0:02:30]}  Rfd8 {[%clk 0:01:15]} 24. Rf3 {[%clk 0:02:21]}  e5 {[%clk 0:01:02]} 25. e4 {[%clk 0:02:17]}  Qd6 {[%clk 0:01:01]} 26. Qb3+ {[%clk 0:02:13]}  Kf8 {[%clk 0:00:54]} 27. d5 {[%clk 0:01:46]}  c5 {[%clk 0:00:42]} 28. Be6 {[%clk 0:01:41]}  Rab8 {[%clk 0:00:36]} 29. Qe3 {[%clk 0:01:38]}  b5 {[%clk 0:00:34]} 30. Rxf6+ {[%clk 0:01:37]}  gxf6 {[%clk 0:00:31]} 31. Qxh6+ {[%clk 0:01:38]}  Ke8 {[%clk 0:00:05]} 32. Qxg6+ {[%clk 0:01:38]} 1-0


[Site "https://www.chess.com"]

[Event "Titled Tuesday Blitz August 1 Early 2023"]
[White "Adury, Anant"]
[Black "Toropov, Pavel"]
[WhiteFideId "30964687"]
[BlackFideId "24129178"]
[WhiteElo "2366"]
[BlackElo "2532"]
[Result "0-1"]
[Round "4"]
[TimeControl "180+1"]
[Date "2023.08.01"]
[WhiteClock "0:00:01"]
[BlackClock "0:00:22"]
[Board "133"]

1. Nf3 {[%clk 0:03:00]}  d5 {[%clk 0:02:59]} 2. g3 {[%clk 0:02:54]}  Nf6 {[%clk 0:02:59]} 3. Bg2 {[%clk 0:02:54]}  c5 {[%clk 0:02:58]} 4. O-O {[%clk 0:02:55]}  e6 {[%clk 0:02:58]} 5. d3 {[%clk 0:02:55]}  b5 {[%clk 0:02:57]} 6. Nbd2 {[%clk 0:02:55]}  Be7 {[%clk 0:02:54]} 7. e4 {[%clk 0:02:56]}  Bb7 {[%clk 0:02:53]} 8. e5 {[%clk 0:02:57]}  Nfd7 {[%clk 0:02:52]} 9. Re1 {[%clk 0:02:57]}  Nc6 {[%clk 0:02:53]} 10. Nf1 {[%clk 0:02:56]}  Qc7 {[%clk 0:02:53]} 11. Qe2 {[%clk 0:02:55]}  O-O {[%clk 0:02:53]} 12. h4 {[%clk 0:02:54]}  Rfc8 {[%clk 0:02:53]} 13. h5 {[%clk 0:02:54]}  h6 {[%clk 0:02:53]} 14. N1h2 {[%clk 0:02:54]}  a5 {[%clk 0:02:51]} 15. Ng4 {[%clk 0:02:52]}  Qd8 {[%clk 0:02:51]} 16. Bf4 {[%clk 0:02:43]}  Ra6 {[%clk 0:02:51]} 17. Qd2 {[%clk 0:02:43]}  Bf8 {[%clk 0:02:50]} 18. Bh3 {[%clk 0:02:44]}  b4 {[%clk 0:02:46]} 19. Nh4 {[%clk 0:02:43]}  Rb6 {[%clk 0:02:27]} 20. Bxh6 {[%clk 0:02:21]}  gxh6 {[%clk 0:02:24]} 21. Nxh6+ {[%clk 0:02:22]}  Bxh6 {[%clk 0:02:24]} 22. Qxh6 {[%clk 0:02:23]}  Qf8 {[%clk 0:02:24]} 23. Qf4 {[%clk 0:02:16]}  Qg7 {[%clk 0:01:32]} 24. h6 {[%clk 0:02:15]}  Qh7 {[%clk 0:01:31]} 25. Nf5 {[%clk 0:01:49]}  Rf8 {[%clk 0:00:44]} 26. Nd6 {[%clk 0:01:22]}  Ncxe5 {[%clk 0:00:32]} 27. Rxe5 {[%clk 0:01:19]}  Nxe5 {[%clk 0:00:30]} 28. Qxe5 {[%clk 0:01:18]}  Qxh6 {[%clk 0:00:30]} 29. Kg2 {[%clk 0:01:03]}  Qg7 {[%clk 0:00:28]} 30. Qxg7+ {[%clk 0:00:29]}  Kxg7 {[%clk 0:00:29]} 31. Nxb7 {[%clk 0:00:29]}  Rxb7 {[%clk 0:00:30]} 32. f4 {[%clk 0:00:25]}  c4 {[%clk 0:00:29]} 33. d4 {[%clk 0:00:15]}  a4 {[%clk 0:00:19]} 34. Kf3 {[%clk 0:00:15]}  b3 {[%clk 0:00:19]} 35. cxb3 {[%clk 0:00:05]}  axb3 {[%clk 0:00:20]} 36. a3 {[%clk 0:00:04]}  c3 {[%clk 0:00:20]} 37. bxc3 {[%clk 0:00:04]}  b2 {[%clk 0:00:21]} 38. Rb1 {[%clk 0:00:04]}  Ra8 {[%clk 0:00:21]} 39. Ke3 {[%clk 0:00:03]}  Rxa3 {[%clk 0:00:21]} 40. Kd3 {[%clk 0:00:03]}  Ra1 {[%clk 0:00:22]} 41. Kc2 {[%clk 0:00:04]}  Rxb1 {[%clk 0:00:22]} 42. Kxb1 {[%clk 0:00:04]}  Kf6 {[%clk 0:00:22]} 43. g4 {[%clk 0:00:01]}  Rb3 {[%clk 0:00:22]} 0-1


[Site "https://www.chess.com"]

[Event "Titled Tuesday Blitz August 1 Early 2023"]
[White "Andreassen, Lars"]
[Black "Jaskolka, Tomasz"]
[WhiteFideId "1504878"]
[BlackFideId "1170791"]
[WhiteElo "2267"]
[BlackElo "2521"]
[Result "0-1"]
[Round "4"]
[TimeControl "180+1"]
[Date "2023.08.01"]
[WhiteClock "0:00:05"]
[BlackClock "0:00:03"]
[Board "136"]

1. d4 {[%clk 0:02:59]}  d5 {[%clk 0:03:00]} 2. c4 {[%clk 0:02:58]}  e5 {[%clk 0:03:00]} 3. dxe5 {[%clk 0:02:57]}  d4 {[%clk 0:03:01]} 4. a3 {[%clk 0:02:57]}  Nc6 {[%clk 0:02:57]} 5. Nf3 {[%clk 0:02:54]}  a5 {[%clk 0:02:55]} 6. Bg5 {[%clk 0:02:53]}  Be7 {[%clk 0:02:51]} 7. h4 {[%clk 0:02:52]}  h6 {[%clk 0:02:46]} 8. Bf4 {[%clk 0:02:52]}  Bg4 {[%clk 0:02:33]} 9. Nbd2 {[%clk 0:02:51]}  f6 {[%clk 0:02:32]} 10. g3 {[%clk 0:02:44]}  d3 {[%clk 0:02:17]} 11. exd3 {[%clk 0:02:38]}  fxe5 {[%clk 0:02:14]} 12. Be3 {[%clk 0:02:37]}  Nf6 {[%clk 0:02:13]} 13. Be2 {[%clk 0:02:35]}  O-O {[%clk 0:02:11]} 14. O-O {[%clk 0:02:28]}  Bf5 {[%clk 0:01:45]} 15. Nb1 {[%clk 0:02:15]}  Ng4 {[%clk 0:01:42]} 16. Nc3 {[%clk 0:02:12]}  Nxe3 {[%clk 0:01:40]} 17. fxe3 {[%clk 0:02:13]}  e4 {[%clk 0:01:37]} 18. dxe4 {[%clk 0:02:08]}  Be6 {[%clk 0:01:36]} 19. Nd5 {[%clk 0:02:06]}  Bc5 {[%clk 0:01:34]} 20. Qd2 {[%clk 0:02:00]}  Qd6 {[%clk 0:01:32]} 21. Kg2 {[%clk 0:01:58]}  Rae8 {[%clk 0:01:26]} 22. Bd3 {[%clk 0:01:54]}  Ne5 {[%clk 0:01:22]} 23. Nxe5 {[%clk 0:01:53]}  Qxe5 {[%clk 0:01:23]} 24. Rxf8+ {[%clk 0:01:48]}  Rxf8 {[%clk 0:01:22]} 25. Qe2 {[%clk 0:01:41]}  Bd6 {[%clk 0:01:04]} 26. Nf4 {[%clk 0:01:39]}  g5 {[%clk 0:01:01]} 27. hxg5 {[%clk 0:01:39]}  hxg5 {[%clk 0:01:01]} 28. Nh5 {[%clk 0:01:39]}  Bf7 {[%clk 0:00:37]} 29. Rf1 {[%clk 0:01:23]}  Bxh5 {[%clk 0:00:37]} 30. Rxf8+ {[%clk 0:01:23]}  Kxf8 {[%clk 0:00:37]} 31. Qxh5 {[%clk 0:01:24]}  Qxg3+ {[%clk 0:00:38]} 32. Kf1 {[%clk 0:01:24]}  Qxe3 {[%clk 0:00:30]} 33. Qh6+ {[%clk 0:01:21]}  Ke7 {[%clk 0:00:28]} 34. Qh7+ {[%clk 0:01:11]}  Kd8 {[%clk 0:00:25]} 35. Qg8+ {[%clk 0:01:07]}  Kd7 {[%clk 0:00:25]} 36. Qf7+ {[%clk 0:01:01]}  Kc6 {[%clk 0:00:20]} 37. Qd5+ {[%clk 0:00:52]}  Kb6 {[%clk 0:00:21]} 38. Qb5+ {[%clk 0:00:34]}  Ka7 {[%clk 0:00:21]} 39. Qxa5+ {[%clk 0:00:34]}  Kb8 {[%clk 0:00:22]} 40. Qc3 {[%clk 0:00:34]}  Bc5 {[%clk 0:00:20]} 41. Qc2 {[%clk 0:00:26]}  g4 {[%clk 0:00:13]} 42. e5 {[%clk 0:00:20]}  g3 {[%clk 0:00:12]} 43. Be4 {[%clk 0:00:20]}  Qg1+ {[%clk 0:00:10]} 44. Ke2 {[%clk 0:00:20]}  Qf2+ {[%clk 0:00:10]} 45. Kd1 {[%clk 0:00:20]}  Qd4+ {[%clk 0:00:06]} 46. Kc1 {[%clk 0:00:19]}  Qxe5 {[%clk 0:00:06]} 47. Kb1 {[%clk 0:00:18]}  Qd4 {[%clk 0:00:05]} 48. Ka2 {[%clk 0:00:16]}  c6 {[%clk 0:00:05]} 49. b3 {[%clk 0:00:14]}  Bd6 {[%clk 0:00:04]} 50. Qg2 {[%clk 0:00:12]}  Be5 {[%clk 0:00:04]} 51. Qh1 {[%clk 0:00:07]}  g2 {[%clk 0:00:02]} 52. Qxg2 {[%clk 0:00:05]}  Qa1# {[%clk 0:00:03]} 0-1


[Site "https://www.chess.com"]

[Event "Titled Tuesday Blitz August 1 Early 2023"]
[White "NigelDwarf"]
[Black "Fudalej, Michal"]
[BlackFideId "1118781"]
[WhiteElo "2520"]
[BlackElo "2247"]
[Result "1-0"]
[Round "4"]
[TimeControl "180+1"]
[Date "2023.08.01"]
[WhiteClock "0:00:05"]
[BlackClock "0:00:04"]
[Board "137"]

1. Nf3 {[%clk 0:02:58]}  g6 {[%clk 0:02:55]} 2. d4 {[%clk 0:02:56]}  Bg7 {[%clk 0:02:55]} 3. c4 {[%clk 0:02:56]}  Nf6 {[%clk 0:02:55]} 4. Nc3 {[%clk 0:02:56]}  d6 {[%clk 0:02:56]} 5. e4 {[%clk 0:02:55]}  O-O {[%clk 0:02:56]} 6. h3 {[%clk 0:02:56]}  e5 {[%clk 0:02:56]} 7. d5 {[%clk 0:02:55]}  a5 {[%clk 0:02:55]} 8. Be3 {[%clk 0:02:51]}  Na6 {[%clk 0:02:55]} 9. g4 {[%clk 0:02:51]}  Nc5 {[%clk 0:02:49]} 10. Nd2 {[%clk 0:02:49]}  Kh8 {[%clk 0:02:29]} 11. Be2 {[%clk 0:02:42]}  Ng8 {[%clk 0:02:28]} 12. a3 {[%clk 0:02:26]}  f5 {[%clk 0:02:17]} 13. b4 {[%clk 0:02:13]}  axb4 {[%clk 0:02:16]} 14. axb4 {[%clk 0:02:13]}  Rxa1 {[%clk 0:02:11]} 15. Qxa1 {[%clk 0:02:14]}  Na6 {[%clk 0:02:11]} 16. gxf5 {[%clk 0:02:08]}  gxf5 {[%clk 0:02:10]} 17. exf5 {[%clk 0:02:08]}  Nxb4 {[%clk 0:02:00]} 18. Qb2 {[%clk 0:02:07]}  Na6 {[%clk 0:01:54]} 19. Nde4 {[%clk 0:02:06]}  b6 {[%clk 0:01:37]} 20. Rg1 {[%clk 0:02:01]}  Bxf5 {[%clk 0:01:33]} 21. Ng5 {[%clk 0:01:50]}  Nc5 {[%clk 0:01:11]} 22. Qd2 {[%clk 0:01:37]}  Qf6 {[%clk 0:01:02]} 23. Bg4 {[%clk 0:01:22]}  Bg6 {[%clk 0:00:55]} 24. Bxc5 {[%clk 0:01:16]}  bxc5 {[%clk 0:00:55]} 25. Ne6 {[%clk 0:01:10]}  Ra8 {[%clk 0:00:55]} 26. Ke2 {[%clk 0:00:43]}  Bh6 {[%clk 0:00:51]} 27. Qb2 {[%clk 0:00:33]}  Ne7 {[%clk 0:00:36]} 28. Qb7 {[%clk 0:00:17]}  Ra3 {[%clk 0:00:27]} 29. Qb8+ {[%clk 0:00:09]}  Ng8 {[%clk 0:00:27]} 30. Qb2 {[%clk 0:00:08]}  Ra4 {[%clk 0:00:20]} 31. Nxa4 {[%clk 0:00:08]}  Be4 {[%clk 0:00:12]} 32. Nc3 {[%clk 0:00:06]}  Bg6 {[%clk 0:00:10]} 33. Qb5 {[%clk 0:00:04]}  Ne7 {[%clk 0:00:09]} 34. Qb8+ {[%clk 0:00:03]}  Ng8 {[%clk 0:00:07]} 35. Qxc7 {[%clk 0:00:03]}  e4 {[%clk 0:00:07]} 36. Nd1 {[%clk 0:00:02]}  Qf4 {[%clk 0:00:05]} 37. Ne3 {[%clk 0:00:01]}  Qe5 {[%clk 0:00:04]} 38. Qd7 {[%clk 0:00:01]}  Qb2+ {[%clk 0:00:04]} 39. Kf1 {[%clk 0:00:02]}  Bxe3 {[%clk 0:00:03]} 40. fxe3 {[%clk 0:00:03]}  Qc1+ {[%clk 0:00:03]} 41. Kg2 {[%clk 0:00:04]}  Qd2+ {[%clk 0:00:03]} 42. Kh1 {[%clk 0:00:04]}  Qxe3 {[%clk 0:00:04]} 43. Qg7# {[%clk 0:00:05]} 1-0


[Site "https://www.chess.com"]

[Event "Titled Tuesday Blitz August 1 Early 2023"]
[White "ChesscularGodofchess"]
[Black "Di Nicolantonio, Lucas"]
[BlackFideId "680460"]
[WhiteElo "2227"]
[BlackElo "2515"]
[Result "0-1"]
[Round "4"]
[TimeControl "180+1"]
[Date "2023.08.01"]
[WhiteClock "0:00:04"]
[BlackClock "0:00:52"]
[Board "138"]

1. d4 {[%clk 0:03:00]}  Nf6 {[%clk 0:02:58]} 2. Nf3 {[%clk 0:03:00]}  e6 {[%clk 0:02:59]} 3. Nbd2 {[%clk 0:03:00]}  b6 {[%clk 0:02:58]} 4. e4 {[%clk 0:03:00]}  Bb7 {[%clk 0:02:59]} 5. Bd3 {[%clk 0:03:00]}  d6 {[%clk 0:02:59]} 6. O-O {[%clk 0:03:00]}  Nbd7 {[%clk 0:02:59]} 7. Qe2 {[%clk 0:02:58]}  Be7 {[%clk 0:02:59]} 8. Rd1 {[%clk 0:02:54]}  h6 {[%clk 0:02:55]} 9. Nf1 {[%clk 0:02:51]}  O-O {[%clk 0:02:51]} 10. h3 {[%clk 0:02:47]}  c5 {[%clk 0:02:50]} 11. c3 {[%clk 0:02:47]}  Qc7 {[%clk 0:02:50]} 12. g4 {[%clk 0:02:40]}  Rfe8 {[%clk 0:02:43]} 13. Ng3 {[%clk 0:02:36]}  Nh7 {[%clk 0:02:29]} 14. h4 {[%clk 0:01:58]}  Ndf8 {[%clk 0:02:24]} 15. g5 {[%clk 0:01:55]}  hxg5 {[%clk 0:02:22]} 16. hxg5 {[%clk 0:01:51]}  Ng6 {[%clk 0:02:23]} 17. Kh2 {[%clk 0:01:25]}  Rac8 {[%clk 0:02:08]} 18. Rh1 {[%clk 0:01:24]}  cxd4 {[%clk 0:02:07]} 19. cxd4 {[%clk 0:01:23]}  Nhf8 {[%clk 0:01:48]} 20. Bd2 {[%clk 0:01:21]}  Qd7 {[%clk 0:01:41]} 21. Kg1 {[%clk 0:01:03]}  Qa4 {[%clk 0:01:36]} 22. b3 {[%clk 0:00:50]}  Qa3 {[%clk 0:01:31]} 23. Nh4 {[%clk 0:00:33]}  Qb2 {[%clk 0:01:22]} 24. Rd1 {[%clk 0:00:28]}  Qxd4 {[%clk 0:01:18]} 25. Qh5 {[%clk 0:00:20]}  Qxd3 {[%clk 0:01:08]} 26. Nxg6 {[%clk 0:00:18]}  fxg6 {[%clk 0:01:08]} 27. Qh8+ {[%clk 0:00:16]}  Kf7 {[%clk 0:01:08]} 28. Bc1 {[%clk 0:00:09]}  Qxd1+ {[%clk 0:01:08]} 29. Kg2 {[%clk 0:00:09]}  Qg4 {[%clk 0:00:59]} 30. Bb2 {[%clk 0:00:09]}  Bxe4+ {[%clk 0:00:58]} 31. Kh2 {[%clk 0:00:08]}  e5 {[%clk 0:00:57]} 32. Nxe4 {[%clk 0:00:07]}  Qxe4 {[%clk 0:00:55]} 33. Rg1 {[%clk 0:00:07]}  Qf4+ {[%clk 0:00:54]} 34. Rg3 {[%clk 0:00:07]}  Rc2 {[%clk 0:00:54]} 35. Bxe5 {[%clk 0:00:05]}  Rxf2+ {[%clk 0:00:53]} 36. Kh3 {[%clk 0:00:06]}  dxe5 {[%clk 0:00:53]} 37. Qh4 {[%clk 0:00:04]}  Rh2+ {[%clk 0:00:52]} 38. Kxh2 {[%clk 0:00:04]}  Qxh4+ {[%clk 0:00:53]} 39. Kg2 {[%clk 0:00:04]}  Bxg5 {[%clk 0:00:52]} 0-1


[Site "https://www.chess.com"]